[Event "Titled Tuesday Blitz August 09 Early 2022"]
[White "Avinash, Ramesh"]
[Black "Kuznetsova, Olga"]
[WhiteFideId "45018340"]
[BlackFideId "4191323"]
[WhiteElo "1901"]
[BlackElo "2134"]
[Result "1-0"]
[Round "05"]
[TimeControl "180+1"]
[Date "2022.08.09"]
[WhiteClock "0:00:59"]
[BlackClock "0:00:09"]

1. c4 {[%clk 0:02:59]}  Nf6 {[%clk 0:02:56]} 2. Nc3 {[%clk 0:02:58]}  e6 {[%clk 0:02:55]} 3. e3 {[%clk 0:02:58]}  d5 {[%clk 0:02:55]} 4. b3 {[%clk 0:02:54]}  Be7 {[%clk 0:02:55]} 5. Bb2 {[%clk 0:02:52]}  O-O {[%clk 0:02:55]} 6. Nf3 {[%clk 0:02:53]}  b6 {[%clk 0:02:54]} 7. Qc2 {[%clk 0:02:53]}  Bb7 {[%clk 0:02:54]} 8. Be2 {[%clk 0:02:43]}  c5 {[%clk 0:02:52]} 9. cxd5 {[%clk 0:02:41]}  exd5 {[%clk 0:02:51]} 10. d4 {[%clk 0:02:41]}  cxd4 {[%clk 0:02:48]} 11. Nxd4 {[%clk 0:02:41]}  Nbd7 {[%clk 0:02:45]} 12. O-O {[%clk 0:02:26]}  Rc8 {[%clk 0:02:45]} 13. Qd2 {[%clk 0:02:14]}  Nc5 {[%clk 0:02:44]} 14. Nf5 {[%clk 0:02:11]}  Nce4 {[%clk 0:02:36]} 15. Nxe4 {[%clk 0:02:07]}  dxe4 {[%clk 0:02:35]} 16. Qxd8 {[%clk 0:02:02]}  Bxd8 {[%clk 0:02:34]} 17. Ba3 {[%clk 0:02:03]}  Rc2 {[%clk 0:02:11]} 18. Bd1 {[%clk 0:01:58]}  Rd2 {[%clk 0:02:06]} 19. Bxf8 {[%clk 0:01:56]}  Kxf8 {[%clk 0:02:07]} 20. Nd4 {[%clk 0:01:49]}  Nd5 {[%clk 0:01:57]} 21. Be2 {[%clk 0:01:46]}  Bf6 {[%clk 0:01:29]} 22. Rfd1 {[%clk 0:01:45]}  Rb2 {[%clk 0:01:19]} 23. Bf1 {[%clk 0:01:42]}  g6 {[%clk 0:01:13]} 24. Rac1 {[%clk 0:01:35]}  Rxa2 {[%clk 0:01:10]} 25. Nc6 {[%clk 0:01:33]}  Nc3 {[%clk 0:01:04]} 26. Rd6 {[%clk 0:01:33]}  Bh4 {[%clk 0:00:55]} 27. g3 {[%clk 0:01:27]}  Be7 {[%clk 0:00:42]} 28. Nxe7 {[%clk 0:01:26]}  Kxe7 {[%clk 0:00:43]} 29. Rd4 {[%clk 0:01:27]}  Nd5 {[%clk 0:00:19]} 30. Rxe4+ {[%clk 0:01:26]}  Kd6 {[%clk 0:00:18]} 31. Ra4 {[%clk 0:01:26]}  Rxa4 {[%clk 0:00:17]} 32. bxa4 {[%clk 0:01:27]}  a5 {[%clk 0:00:17]} 33. Bg2 {[%clk 0:01:26]}  Bc6 {[%clk 0:00:15]} 34. e4 {[%clk 0:01:21]}  Nb4 {[%clk 0:00:15]} 35. e5+ {[%clk 0:01:11]}  Kd7 {[%clk 0:00:15]} 36. Bxc6+ {[%clk 0:01:07]}  Nxc6 {[%clk 0:00:16]} 37. f4 {[%clk 0:01:08]}  Nb4 {[%clk 0:00:13]} 38. Kg2 {[%clk 0:01:06]}  Nd5 {[%clk 0:00:13]} 39. Kf3 {[%clk 0:01:05]}  f5 {[%clk 0:00:10]} 40. Ke2 {[%clk 0:00:57]}  Nc7 {[%clk 0:00:09]} 41. Kd3 {[%clk 0:00:57]}  Ne6 {[%clk 0:00:09]} 42. Kc4 {[%clk 0:00:57]}  Kc6 {[%clk 0:00:08]} 43. Rd1 {[%clk 0:00:58]}  Nc5 {[%clk 0:00:09]} 44. Rd6+ {[%clk 0:00:58]}  Kc7 {[%clk 0:00:09]} 45. Kb5 {[%clk 0:00:59]}  Nd7 {[%clk 0:00:09]} 46. Rxd7+ {[%clk 0:00:58]}  Kxd7 {[%clk 0:00:09]} 47. Kxb6 {[%clk 0:00:59]} 1-0


[Site "https://www.chess.com"]

[Event "Titled Tuesday Blitz August 09 Early 2022"]
[White "Azarov, Sergei"]
[Black "Yurovskykh, Oleksandr"]
[WhiteFideId "13501470"]
[BlackFideId "14134020"]
[WhiteElo "2494"]
[BlackElo "2292"]
[Result "1-0"]
[Round "05"]
[TimeControl "180+1"]
[Date "2022.08.09"]
[WhiteClock "0:00:41"]
[BlackClock "0:00:01"]

1. e4 {[%clk 0:03:00]}  d5 {[%clk 0:02:58]} 2. exd5 {[%clk 0:03:00]}  Qxd5 {[%clk 0:02:57]} 3. Nc3 {[%clk 0:03:00]}  Qd8 {[%clk 0:02:57]} 4. d4 {[%clk 0:02:59]}  Nf6 {[%clk 0:02:57]} 5. Nf3 {[%clk 0:02:59]}  Bg4 {[%clk 0:02:57]} 6. g3 {[%clk 0:02:59]}  e6 {[%clk 0:02:56]} 7. Bg2 {[%clk 0:02:59]}  c6 {[%clk 0:02:57]} 8. h3 {[%clk 0:02:59]}  Bh5 {[%clk 0:02:56]} 9. g4 {[%clk 0:02:49]}  Bg6 {[%clk 0:02:55]} 10. Ne5 {[%clk 0:02:50]}  Nbd7 {[%clk 0:02:55]} 11. Qe2 {[%clk 0:02:47]}  Qb6 {[%clk 0:02:37]} 12. h4 {[%clk 0:02:37]}  Qxd4 {[%clk 0:02:19]} 13. Nxd7 {[%clk 0:02:36]}  Nxd7 {[%clk 0:02:08]} 14. h5 {[%clk 0:02:25]}  Bxc2 {[%clk 0:02:08]} 15. Qxc2 {[%clk 0:02:21]}  Qxg4 {[%clk 0:02:03]} 16. Qe4 {[%clk 0:02:14]}  Qxe4+ {[%clk 0:01:52]} 17. Nxe4 {[%clk 0:02:15]}  Nc5 {[%clk 0:01:53]} 18. Ke2 {[%clk 0:01:53]}  Nxe4 {[%clk 0:01:42]} 19. Bxe4 {[%clk 0:01:52]}  Bc5 {[%clk 0:01:42]} 20. h6 {[%clk 0:01:49]}  g6 {[%clk 0:01:42]} 21. Bg5 {[%clk 0:01:43]}  Be7 {[%clk 0:01:42]} 22. f4 {[%clk 0:01:36]}  f6 {[%clk 0:01:30]} 23. Bh4 {[%clk 0:01:36]}  Kf7 {[%clk 0:01:30]} 24. Bc2 {[%clk 0:01:26]}  Rad8 {[%clk 0:01:29]} 25. Bb3 {[%clk 0:01:25]}  Rd4 {[%clk 0:01:19]} 26. Bg3 {[%clk 0:01:08]}  Rhd8 {[%clk 0:01:15]} 27. Rhe1 {[%clk 0:01:06]}  f5 {[%clk 0:00:52]} 28. Kf3 {[%clk 0:01:06]}  Rd3+ {[%clk 0:00:43]} 29. Kg2 {[%clk 0:01:06]}  Rd2+ {[%clk 0:00:41]} 30. Kh3 {[%clk 0:01:06]}  R8d6 {[%clk 0:00:41]} 31. Re3 {[%clk 0:01:04]}  Bf8 {[%clk 0:00:19]} 32. Rae1 {[%clk 0:01:01]}  Bxh6 {[%clk 0:00:20]} 33. Bxe6+ {[%clk 0:00:49]}  Kf8 {[%clk 0:00:18]} 34. Bb3 {[%clk 0:00:49]}  Rd7 {[%clk 0:00:15]} 35. Re8+ {[%clk 0:00:47]}  Kg7 {[%clk 0:00:16]} 36. Rg8+ {[%clk 0:00:45]}  Kf6 {[%clk 0:00:16]} 37. Bh4+ {[%clk 0:00:43]}  g5 {[%clk 0:00:02]} 38. fxg5+ {[%clk 0:00:41]}  Bxg5 {[%clk 0:00:01]} 39. Bxg5# {[%clk 0:00:41]} 1-0


[Site "https://www.chess.com"]

[Event "Titled Tuesday Blitz August 09 Early 2022"]
[White "Belov, Vladimir"]
[Black "Bortnyk, Olexandr"]
[WhiteFideId "4132394"]
[BlackFideId "14120828"]
[WhiteElo "2501"]
[BlackElo "2723"]
[Result "0-1"]
[Round "05"]
[TimeControl "180+1"]
[Date "2022.08.09"]
[WhiteClock "0:00:40"]
[BlackClock "0:00:17"]

1. d4 {[%clk 0:03:00]}  d6 {[%clk 0:02:59]} 2. e4 {[%clk 0:03:00]}  Nf6 {[%clk 0:02:59]} 3. Nc3 {[%clk 0:03:01]}  Nbd7 {[%clk 0:03:00]} 4. Nf3 {[%clk 0:03:01]}  e5 {[%clk 0:03:00]} 5. Bc4 {[%clk 0:03:00]}  Be7 {[%clk 0:03:01]} 6. O-O {[%clk 0:03:00]}  c6 {[%clk 0:03:01]} 7. a4 {[%clk 0:03:00]}  h6 {[%clk 0:03:01]} 8. Re1 {[%clk 0:03:01]}  Qc7 {[%clk 0:03:01]} 9. h3 {[%clk 0:03:01]}  g5 {[%clk 0:03:01]} 10. a5 {[%clk 0:02:53]}  Nf8 {[%clk 0:03:00]} 11. Nh2 {[%clk 0:02:46]}  Ng6 {[%clk 0:02:56]} 12. Be3 {[%clk 0:02:45]}  Nf4 {[%clk 0:02:47]} 13. b4 {[%clk 0:02:34]}  h5 {[%clk 0:02:22]} 14. b5 {[%clk 0:02:28]}  cxb5 {[%clk 0:02:14]} 15. Bxb5+ {[%clk 0:02:29]}  Kf8 {[%clk 0:02:14]} 16. dxe5 {[%clk 0:02:22]}  dxe5 {[%clk 0:02:11]} 17. Nd5 {[%clk 0:02:22]}  N6xd5 {[%clk 0:02:11]} 18. exd5 {[%clk 0:02:22]}  Bf5 {[%clk 0:02:05]} 19. c4 {[%clk 0:02:08]}  a6 {[%clk 0:02:03]} 20. c5 {[%clk 0:02:09]}  axb5 {[%clk 0:01:54]} 21. d6 {[%clk 0:02:09]}  Bxd6 {[%clk 0:01:55]} 22. cxd6 {[%clk 0:02:09]}  Qc2 {[%clk 0:01:28]} 23. Nf3 {[%clk 0:01:56]}  Qxd1 {[%clk 0:01:24]} 24. Rexd1 {[%clk 0:01:56]}  f6 {[%clk 0:01:25]} 25. d7 {[%clk 0:01:46]}  Rd8 {[%clk 0:01:15]} 26. Rd6 {[%clk 0:01:37]}  Ke7 {[%clk 0:01:13]} 27. Bc5 {[%clk 0:01:19]}  Rxd7 {[%clk 0:01:11]} 28. Rad1 {[%clk 0:01:13]}  Rxd6 {[%clk 0:01:04]} 29. Rxd6 {[%clk 0:01:14]}  Kf7 {[%clk 0:01:00]} 30. Rb6 {[%clk 0:01:12]}  Be4 {[%clk 0:01:00]} 31. Nd2 {[%clk 0:00:53]}  Bxg2 {[%clk 0:00:57]} 32. Be3 {[%clk 0:00:46]}  Bd5 {[%clk 0:00:29]} 33. Rxb5 {[%clk 0:00:46]}  Rd8 {[%clk 0:00:24]} 34. h4 {[%clk 0:00:44]}  g4 {[%clk 0:00:19]} 35. Nb3 {[%clk 0:00:40]}  Bc6 {[%clk 0:00:17]} 0-1


[Site "https://www.chess.com"]

[Event "Titled Tuesday Blitz August 09 Early 2022"]
[White "Bharath Subramaniyam H"]
[Black "Eynullayev, Altay"]
[WhiteFideId "46634827"]
[BlackFideId "13413562"]
[WhiteElo "2346"]
[BlackElo "2079"]
[Result "1-0"]
[Round "05"]
[TimeControl "180+1"]
[Date "2022.08.09"]
[WhiteClock "0:00:08"]
[BlackClock "0:00:30"]

1. d4 {[%clk 0:02:41]}  Nf6 {[%clk 0:03:00]} 2. Nf3 {[%clk 0:02:40]}  e6 {[%clk 0:03:00]} 3. Bf4 {[%clk 0:02:40]}  d5 {[%clk 0:02:59]} 4. c3 {[%clk 0:02:39]}  c5 {[%clk 0:02:59]} 5. e3 {[%clk 0:02:38]}  Nc6 {[%clk 0:02:59]} 6. Nbd2 {[%clk 0:02:37]}  cxd4 {[%clk 0:02:59]} 7. exd4 {[%clk 0:02:36]}  Nh5 {[%clk 0:03:00]} 8. Bg5 {[%clk 0:02:32]}  f6 {[%clk 0:02:59]} 9. Ne5 {[%clk 0:02:27]}  g6 {[%clk 0:02:58]} 10. Nxc6 {[%clk 0:02:24]}  bxc6 {[%clk 0:02:58]} 11. Be3 {[%clk 0:02:25]}  Bd6 {[%clk 0:02:57]} 12. g3 {[%clk 0:02:23]}  O-O {[%clk 0:02:52]} 13. Bg2 {[%clk 0:02:23]}  f5 {[%clk 0:02:40]} 14. f4 {[%clk 0:02:20]}  Nf6 {[%clk 0:02:40]} 15. O-O {[%clk 0:02:18]}  Ne4 {[%clk 0:02:39]} 16. c4 {[%clk 0:02:15]}  Ba6 {[%clk 0:02:26]} 17. Re1 {[%clk 0:02:12]}  Rb8 {[%clk 0:02:22]} 18. c5 {[%clk 0:02:06]}  Bc7 {[%clk 0:02:18]} 19. b3 {[%clk 0:02:06]}  Ba5 {[%clk 0:02:17]} 20. Qc2 {[%clk 0:01:59]}  Qf6 {[%clk 0:02:11]} 21. Red1 {[%clk 0:01:50]}  Bxd2 {[%clk 0:02:08]} 22. Rxd2 {[%clk 0:01:49]}  Nxd2 {[%clk 0:02:08]} 23. Qxd2 {[%clk 0:01:50]}  Rf7 {[%clk 0:02:01]} 24. Bf2 {[%clk 0:01:46]}  Bc8 {[%clk 0:01:53]} 25. Bf1 {[%clk 0:01:43]}  h6 {[%clk 0:01:52]} 26. Re1 {[%clk 0:01:41]}  Rg7 {[%clk 0:01:52]} 27. Kh1 {[%clk 0:01:25]}  Bd7 {[%clk 0:01:51]} 28. Ba6 {[%clk 0:01:06]}  Rf8 {[%clk 0:01:42]} 29. b4 {[%clk 0:01:04]}  g5 {[%clk 0:01:41]} 30. a4 {[%clk 0:01:04]}  gxf4 {[%clk 0:01:19]} 31. Qxf4 {[%clk 0:01:02]}  Rff7 {[%clk 0:01:16]} 32. b5 {[%clk 0:00:59]}  Rg4 {[%clk 0:01:15]} 33. Qb8+ {[%clk 0:00:58]}  Kh7 {[%clk 0:01:14]} 34. b6 {[%clk 0:00:55]}  axb6 {[%clk 0:01:12]} 35. cxb6 {[%clk 0:00:55]}  f4 {[%clk 0:01:11]} 36. Bd3+ {[%clk 0:00:54]}  Kg7 {[%clk 0:01:09]} 37. Qe5 {[%clk 0:00:46]}  Qxe5 {[%clk 0:01:09]} 38. Rxe5 {[%clk 0:00:24]}  fxg3 {[%clk 0:01:08]} 39. Be3 {[%clk 0:00:16]}  Bc8 {[%clk 0:00:59]} 40. a5 {[%clk 0:00:15]}  Rf3 {[%clk 0:00:58]} 41. a6 {[%clk 0:00:10]}  Rxe3 {[%clk 0:00:41]} 42. Rxe3 {[%clk 0:00:10]}  Rxd4 {[%clk 0:00:41]} 43. b7 {[%clk 0:00:09]}  Bxb7 {[%clk 0:00:41]} 44. axb7 {[%clk 0:00:09]}  Rb4 {[%clk 0:00:42]} 45. Ba6 {[%clk 0:00:09]}  gxh2 {[%clk 0:00:35]} 46. Rxe6 {[%clk 0:00:08]}  d4 {[%clk 0:00:30]} 47. Re8 {[%clk 0:00:08]} 1-0


[Site "https://www.chess.com"]

[Event "Titled Tuesday Blitz August 09 Early 2022"]
[White "Blanco Ronquillo, Humberto L."]
[Black "Chernomordik, Pavel"]
[WhiteFideId "3504239"]
[BlackFideId "2804530"]
[WhiteElo "2425"]
[BlackElo "2217"]
[Result "1/2-1/2"]
[Round "05"]
[TimeControl "180+1"]
[Date "2022.08.09"]
[WhiteClock "0:00:05"]
[BlackClock "0:00:04"]

1. d4 {[%clk 0:03:00]}  g6 {[%clk 0:02:59]} 2. e4 {[%clk 0:02:57]}  Bg7 {[%clk 0:02:59]} 3. h3 {[%clk 0:02:55]}  d6 {[%clk 0:02:59]} 4. Nf3 {[%clk 0:02:55]}  b6 {[%clk 0:02:51]} 5. Bd3 {[%clk 0:02:53]}  Bb7 {[%clk 0:02:50]} 6. O-O {[%clk 0:02:53]}  e6 {[%clk 0:02:49]} 7. a4 {[%clk 0:02:44]}  a6 {[%clk 0:02:48]} 8. Re1 {[%clk 0:02:43]}  Nd7 {[%clk 0:02:48]} 9. Nbd2 {[%clk 0:02:42]}  Ne7 {[%clk 0:02:45]} 10. Nf1 {[%clk 0:02:42]}  c5 {[%clk 0:02:41]} 11. c3 {[%clk 0:02:40]}  O-O {[%clk 0:02:39]} 12. Ng3 {[%clk 0:02:40]}  Nc6 {[%clk 0:02:36]} 13. Bg5 {[%clk 0:02:24]}  Qc7 {[%clk 0:02:32]} 14. Rc1 {[%clk 0:02:06]}  Qb8 {[%clk 0:02:22]} 15. Bb1 {[%clk 0:02:03]}  b5 {[%clk 0:02:18]} 16. axb5 {[%clk 0:02:02]}  axb5 {[%clk 0:02:18]} 17. Qd2 {[%clk 0:02:03]}  cxd4 {[%clk 0:02:10]} 18. cxd4 {[%clk 0:02:02]}  Qa7 {[%clk 0:02:10]} 19. Bh6 {[%clk 0:01:52]}  Nxd4 {[%clk 0:01:53]} 20. Nxd4 {[%clk 0:01:48]}  Bxh6 {[%clk 0:01:51]} 21. Qxh6 {[%clk 0:01:48]}  Qxd4 {[%clk 0:01:50]} 22. Rc7 {[%clk 0:01:49]}  Nc5 {[%clk 0:01:46]} 23. Nh5 {[%clk 0:01:24]}  gxh5 {[%clk 0:01:26]} 24. Rxb7 {[%clk 0:00:52]}  Qg7 {[%clk 0:00:55]} 25. Qxg7+ {[%clk 0:00:48]}  Kxg7 {[%clk 0:00:55]} 26. Rxb5 {[%clk 0:00:48]}  Rfb8 {[%clk 0:00:54]} 27. Rxb8 {[%clk 0:00:48]}  Rxb8 {[%clk 0:00:54]} 28. Re2 {[%clk 0:00:46]}  Na4 {[%clk 0:00:53]} 29. Re3 {[%clk 0:00:41]}  Rxb2 {[%clk 0:00:49]} 30. Bd3 {[%clk 0:00:41]}  Nc5 {[%clk 0:00:48]} 31. Be2 {[%clk 0:00:39]}  Rb3 {[%clk 0:00:41]} 32. Rxb3 {[%clk 0:00:38]}  Nxb3 {[%clk 0:00:41]} 33. Bxh5 {[%clk 0:00:39]}  Nd2 {[%clk 0:00:34]} 34. f3 {[%clk 0:00:39]}  f6 {[%clk 0:00:29]} 35. Kf2 {[%clk 0:00:38]}  e5 {[%clk 0:00:27]} 36. Ke3 {[%clk 0:00:35]}  Nb3 {[%clk 0:00:22]} 37. Be8 {[%clk 0:00:30]}  Kf8 {[%clk 0:00:21]} 38. Bc6 {[%clk 0:00:29]}  Ke7 {[%clk 0:00:20]} 39. Bd5 {[%clk 0:00:29]}  Nd4 {[%clk 0:00:19]} 40. f4 {[%clk 0:00:26]}  f5 {[%clk 0:00:15]} 41. g4 {[%clk 0:00:22]}  fxg4 {[%clk 0:00:12]} 42. hxg4 {[%clk 0:00:21]}  h6 {[%clk 0:00:12]} 43. fxe5 {[%clk 0:00:13]}  dxe5 {[%clk 0:00:12]} 44. Bb7 {[%clk 0:00:08]}  Kf6 {[%clk 0:00:11]} 45. Bc8 {[%clk 0:00:08]}  Kg5 {[%clk 0:00:11]} 46. Bf5 {[%clk 0:00:08]}  Nc2+ {[%clk 0:00:08]} 47. Kf3 {[%clk 0:00:08]}  Nb4 {[%clk 0:00:05]} 48. Ke3 {[%clk 0:00:06]}  Nc6 {[%clk 0:00:05]} 49. Kd3 {[%clk 0:00:06]}  Ne7 {[%clk 0:00:04]} 50. Kc4 {[%clk 0:00:05]}  Ng8 {[%clk 0:00:03]} 51. Kd5 {[%clk 0:00:05]}  Nf6+ {[%clk 0:00:04]} 52. Kxe5 {[%clk 0:00:05]}  Nxg4+ {[%clk 0:00:03]} 53. Bxg4 {[%clk 0:00:04]}  Kxg4 {[%clk 0:00:03]} 54. Kd6 {[%clk 0:00:03]}  h5 {[%clk 0:00:04]} 55. e5 {[%clk 0:00:03]}  h4 {[%clk 0:00:05]} 56. e6 {[%clk 0:00:04]}  h3 {[%clk 0:00:05]} 57. e7 {[%clk 0:00:05]}  h2 {[%clk 0:00:05]} 58. e8=Q {[%clk 0:00:06]}  h1=Q {[%clk 0:00:05]} 59. Qe6+ {[%clk 0:00:06]}  Kg3 {[%clk 0:00:05]} 60. Qe5+ {[%clk 0:00:06]}  Kg2 {[%clk 0:00:05]} 61. Qe4+ {[%clk 0:00:05]}  Kg1 {[%clk 0:00:05]} 62. Qe1+ {[%clk 0:00:05]}  Kg2 {[%clk 0:00:04]} 63. Qxh1+ {[%clk 0:00:05]}  Kxh1 {[%clk 0:00:04]} 1/2-1/2


[Site "https://www.chess.com"]

[Event "Titled Tuesday Blitz August 09 Early 2022"]
[White "Boyer, Mahel"]
[Black "Ponce Cano, Adrian"]
[WhiteFideId "45102422"]
[BlackFideId "22296913"]
[WhiteElo "2454"]
[BlackElo "2261"]
[Result "1-0"]
[Round "05"]
[TimeControl "180+1"]
[Date "2022.08.09"]
[WhiteClock "0:01:47"]
[BlackClock "0:01:04"]

1. d4 {[%clk 0:02:57]}  d5 {[%clk 0:02:59]} 2. c4 {[%clk 0:02:56]}  e6 {[%clk 0:02:59]} 3. Nc3 {[%clk 0:02:56]}  Nf6 {[%clk 0:02:59]} 4. cxd5 {[%clk 0:02:55]}  exd5 {[%clk 0:02:59]} 5. Bf4 {[%clk 0:02:55]}  c6 {[%clk 0:02:58]} 6. e3 {[%clk 0:02:55]}  Bd6 {[%clk 0:02:58]} 7. Bd3 {[%clk 0:02:56]}  Bxf4 {[%clk 0:02:57]} 8. exf4 {[%clk 0:02:57]}  Qd6 {[%clk 0:02:57]} 9. Nge2 {[%clk 0:02:57]}  O-O {[%clk 0:02:56]} 10. O-O {[%clk 0:02:57]}  Re8 {[%clk 0:02:54]} 11. Qd2 {[%clk 0:02:57]}  b6 {[%clk 0:02:52]} 12. Rfe1 {[%clk 0:02:57]}  Ba6 {[%clk 0:02:51]} 13. Bxa6 {[%clk 0:02:55]}  Nxa6 {[%clk 0:02:51]} 14. Ng3 {[%clk 0:02:56]}  Nc7 {[%clk 0:02:45]} 15. Nf5 {[%clk 0:02:55]}  Qd7 {[%clk 0:02:45]} 16. Qd3 {[%clk 0:02:55]}  g6 {[%clk 0:02:34]} 17. Ng3 {[%clk 0:02:46]}  Rxe1+ {[%clk 0:02:32]} 18. Rxe1 {[%clk 0:02:45]}  Re8 {[%clk 0:02:33]} 19. Re5 {[%clk 0:02:45]}  Ng4 {[%clk 0:02:29]} 20. Re2 {[%clk 0:02:43]}  Nf6 {[%clk 0:02:23]} 21. f5 {[%clk 0:02:42]}  Kg7 {[%clk 0:02:19]} 22. h4 {[%clk 0:02:38]}  c5 {[%clk 0:02:17]} 23. fxg6 {[%clk 0:02:35]}  hxg6 {[%clk 0:02:17]} 24. Re5 {[%clk 0:02:26]}  Ng4 {[%clk 0:02:09]} 25. Re2 {[%clk 0:02:19]}  Nf6 {[%clk 0:02:02]} 26. h5 {[%clk 0:02:18]}  Rxe2 {[%clk 0:01:56]} 27. Ncxe2 {[%clk 0:02:17]}  Qg4 {[%clk 0:01:53]} 28. hxg6 {[%clk 0:02:14]}  fxg6 {[%clk 0:01:54]} 29. Qe3 {[%clk 0:02:13]}  Qe6 {[%clk 0:01:41]} 30. Qf4 {[%clk 0:02:09]}  Nb5 {[%clk 0:01:40]} 31. dxc5 {[%clk 0:02:06]}  bxc5 {[%clk 0:01:39]} 32. Qb8 {[%clk 0:02:02]}  Qb6 {[%clk 0:01:35]} 33. Qe5 {[%clk 0:01:54]}  Qd6 {[%clk 0:01:33]} 34. Qg5 {[%clk 0:01:54]}  Qe6 {[%clk 0:01:25]} 35. Nf4 {[%clk 0:01:52]}  Qe1+ {[%clk 0:01:23]} 36. Kh2 {[%clk 0:01:52]}  Qb1 {[%clk 0:01:04]} 37. Qe5 {[%clk 0:01:47]} 1-0


[Site "https://www.chess.com"]

[Event "Titled Tuesday Blitz August 09 Early 2022"]
[White "Bressac, Stephane"]
[Black "Delorme, Axel"]
[WhiteFideId "655945"]
[BlackFideId "632023"]
[WhiteElo "2339"]
[BlackElo "2474"]
[Result "1-0"]
[Round "05"]
[TimeControl "180+1"]
[Date "2022.08.09"]
[WhiteClock "0:00:02"]
[BlackClock "0:00:05"]

1. e4 {[%clk 0:03:00]}  c6 {[%clk 0:02:56]} 2. d4 {[%clk 0:03:00]}  d5 {[%clk 0:02:46]} 3. Nd2 {[%clk 0:03:00]}  Nf6 {[%clk 0:02:45]} 4. e5 {[%clk 0:02:51]}  Nfd7 {[%clk 0:02:44]} 5. f4 {[%clk 0:02:44]}  e6 {[%clk 0:02:43]} 6. Ngf3 {[%clk 0:02:44]}  c5 {[%clk 0:02:44]} 7. c3 {[%clk 0:02:44]}  Nc6 {[%clk 0:02:44]} 8. Nb3 {[%clk 0:02:37]}  a6 {[%clk 0:02:42]} 9. Be3 {[%clk 0:02:36]}  c4 {[%clk 0:02:36]} 10. Nbd2 {[%clk 0:02:35]}  b5 {[%clk 0:02:36]} 11. Be2 {[%clk 0:02:28]}  Nb6 {[%clk 0:02:32]} 12. O-O {[%clk 0:02:28]}  Be7 {[%clk 0:02:32]} 13. g4 {[%clk 0:02:26]}  g6 {[%clk 0:02:32]} 14. Rf2 {[%clk 0:02:19]}  Bd7 {[%clk 0:02:31]} 15. Nf1 {[%clk 0:02:19]}  Qc7 {[%clk 0:02:29]} 16. Ng3 {[%clk 0:02:19]}  a5 {[%clk 0:02:28]} 17. f5 {[%clk 0:02:16]}  b4 {[%clk 0:02:26]} 18. fxe6 {[%clk 0:02:16]}  Bxe6 {[%clk 0:02:23]} 19. Ng5 {[%clk 0:02:15]}  Qd7 {[%clk 0:02:05]} 20. Qd2 {[%clk 0:02:01]}  a4 {[%clk 0:01:58]} 21. Raf1 {[%clk 0:01:54]}  Bxg5 {[%clk 0:01:55]} 22. Bxg5 {[%clk 0:01:54]}  a3 {[%clk 0:01:50]} 23. cxb4 {[%clk 0:01:43]}  axb2 {[%clk 0:01:49]} 24. Qxb2 {[%clk 0:01:37]}  Ra4 {[%clk 0:01:36]} 25. a3 {[%clk 0:01:34]}  Qa7 {[%clk 0:01:30]} 26. Bc1 {[%clk 0:01:12]}  Nd7 {[%clk 0:01:09]} 27. Bd1 {[%clk 0:01:12]}  Ra6 {[%clk 0:01:07]} 28. b5 {[%clk 0:01:09]}  Rb6 {[%clk 0:01:07]} 29. a4 {[%clk 0:01:09]}  Na5 {[%clk 0:01:00]} 30. Qb4 {[%clk 0:01:05]}  Nb3 {[%clk 0:00:51]} 31. Ba3 {[%clk 0:01:05]}  Nb8 {[%clk 0:00:48]} 32. Bxb3 {[%clk 0:01:00]}  cxb3 {[%clk 0:00:48]} 33. Qxb3 {[%clk 0:01:01]}  Nd7 {[%clk 0:00:37]} 34. Rc1 {[%clk 0:00:56]}  Rb8 {[%clk 0:00:35]} 35. Rfc2 {[%clk 0:00:56]}  Nxe5 {[%clk 0:00:34]} 36. Rc7 {[%clk 0:00:50]}  Qxd4+ {[%clk 0:00:33]} 37. Kh1 {[%clk 0:00:41]}  Bxg4 {[%clk 0:00:22]} 38. Re7+ {[%clk 0:00:29]}  Kd8 {[%clk 0:00:23]} 39. Rxe5 {[%clk 0:00:12]}  Qxe5 {[%clk 0:00:23]} 40. Qd3 {[%clk 0:00:10]}  Re8 {[%clk 0:00:15]} 41. Bc5 {[%clk 0:00:03]}  h5 {[%clk 0:00:13]} 42. Kg1 {[%clk 0:00:01]}  h4 {[%clk 0:00:13]} 43. Nf1 {[%clk 0:00:02]}  Bf5 {[%clk 0:00:11]} 44. Qd2 {[%clk 0:00:02]}  Be4 {[%clk 0:00:09]} 45. Bd4 {[%clk 0:00:02]}  Qf5 {[%clk 0:00:05]} 46. Qc3 {[%clk 0:00:02]}  Qg4+ {[%clk 0:00:05]} 47. Ng3 {[%clk 0:00:02]}  hxg3 {[%clk 0:00:05]} 48. Qc7# {[%clk 0:00:02]} 1-0


[Site "https://www.chess.com"]

[Event "Titled Tuesday Blitz August 09 Early 2022"]
[White "Bryakin, Mikhail"]
[Black "Dubov, Daniil"]
[WhiteFideId "4165314"]
[BlackFideId "24126055"]
[WhiteElo "2353"]
[BlackElo "2791"]
[Result "0-1"]
[Round "05"]
[TimeControl "180+1"]
[Date "2022.08.09"]
[WhiteClock "0:00:02"]
[BlackClock "0:00:05"]

1. Nf3 {[%clk 0:02:59]}  d5 {[%clk 0:02:59]} 2. b3 {[%clk 0:02:52]}  Bg4 {[%clk 0:02:48]} 3. Bb2 {[%clk 0:02:45]}  Nc6 {[%clk 0:02:47]} 4. h3 {[%clk 0:02:37]}  Bxf3 {[%clk 0:02:44]} 5. exf3 {[%clk 0:02:36]}  a6 {[%clk 0:02:42]} 6. d3 {[%clk 0:02:32]}  e5 {[%clk 0:02:39]} 7. Nd2 {[%clk 0:02:14]}  Nf6 {[%clk 0:02:34]} 8. g3 {[%clk 0:02:14]}  Bc5 {[%clk 0:02:25]} 9. Bg2 {[%clk 0:02:11]}  O-O {[%clk 0:02:25]} 10. O-O {[%clk 0:02:08]}  Qd7 {[%clk 0:02:20]} 11. Kh2 {[%clk 0:02:05]}  a5 {[%clk 0:02:14]} 12. a3 {[%clk 0:02:05]}  Bd4 {[%clk 0:02:02]} 13. Qc1 {[%clk 0:01:53]}  Bxb2 {[%clk 0:01:59]} 14. Qxb2 {[%clk 0:01:54]}  Qd6 {[%clk 0:01:59]} 15. Rfe1 {[%clk 0:01:45]}  Rfe8 {[%clk 0:01:59]} 16. Rad1 {[%clk 0:01:38]}  h6 {[%clk 0:01:57]} 17. Nf1 {[%clk 0:01:37]}  b5 {[%clk 0:01:52]} 18. Ne3 {[%clk 0:01:34]}  b4 {[%clk 0:01:49]} 19. a4 {[%clk 0:01:33]}  Qc5 {[%clk 0:01:45]} 20. Rd2 {[%clk 0:01:21]}  Nd4 {[%clk 0:01:40]} 21. Ng4 {[%clk 0:01:17]}  Nd7 {[%clk 0:00:58]} 22. Ne3 {[%clk 0:01:04]}  Ra6 {[%clk 0:00:48]} 23. Nf1 {[%clk 0:00:49]}  Rae6 {[%clk 0:00:44]} 24. h4 {[%clk 0:00:46]}  Nf6 {[%clk 0:00:43]} 25. Ne3 {[%clk 0:00:42]}  Kf8 {[%clk 0:00:38]} 26. Rdd1 {[%clk 0:00:40]}  Rc6 {[%clk 0:00:37]} 27. Rd2 {[%clk 0:00:40]}  Qc3 {[%clk 0:00:37]} 28. Qxc3 {[%clk 0:00:37]}  Rxc3 {[%clk 0:00:33]} 29. Rb1 {[%clk 0:00:27]}  h5 {[%clk 0:00:31]} 30. Rb2 {[%clk 0:00:26]}  g6 {[%clk 0:00:30]} 31. Kh1 {[%clk 0:00:09]}  Re6 {[%clk 0:00:29]} 32. Kh2 {[%clk 0:00:09]}  Rec6 {[%clk 0:00:29]} 33. f4 {[%clk 0:00:09]}  exf4 {[%clk 0:00:24]} 34. Nxd5 {[%clk 0:00:10]}  f3 {[%clk 0:00:20]} 35. Nxf6 {[%clk 0:00:08]}  Rxf6 {[%clk 0:00:14]} 36. Bh3 {[%clk 0:00:04]}  Rfc6 {[%clk 0:00:14]} 37. g4 {[%clk 0:00:04]}  hxg4 {[%clk 0:00:13]} 38. Bxg4 {[%clk 0:00:04]}  f5 {[%clk 0:00:14]} 39. Bh3 {[%clk 0:00:05]}  Re6 {[%clk 0:00:11]} 40. Kg3 {[%clk 0:00:05]}  Re2 {[%clk 0:00:11]} 41. Rd1 {[%clk 0:00:04]}  Kf7 {[%clk 0:00:11]} 42. Bf1 {[%clk 0:00:02]}  Re6 {[%clk 0:00:08]} 43. Kf4 {[%clk 0:00:02]}  Kf6 {[%clk 0:00:08]} 44. Rd2 {[%clk 0:00:02]}  Re1 {[%clk 0:00:08]} 45. Bh3 {[%clk 0:00:03]}  Rh1 {[%clk 0:00:08]} 46. Kg3 {[%clk 0:00:03]}  Rg1+ {[%clk 0:00:08]} 47. Kh2 {[%clk 0:00:03]}  Re1 {[%clk 0:00:07]} 48. Kg3 {[%clk 0:00:03]}  Ke5 {[%clk 0:00:06]} 49. Kh2 {[%clk 0:00:01]}  Re2 {[%clk 0:00:06]} 50. Rxe2+ {[%clk 0:00:01]}  fxe2 {[%clk 0:00:06]} 51. Rb1 {[%clk 0:00:01]}  Nf3+ {[%clk 0:00:04]} 52. Kg3 {[%clk 0:00:02]}  e1=Q {[%clk 0:00:05]} 0-1


[Site "https://www.chess.com"]